[Event "January 2 Late 2024"]
[Site "https://www.chess.com"]
[Date "2024.01.02"]
[Round "6"]
[White "Hoeffer, David"]
[Black "Hamidi, Amir Mohammad"]
[Result "1/2-1/2"]
[Board "122"]
[TimeControl "180+1"]
[WhiteFideId "24606766"]
[BlackFideId "12563285"]
[WhiteElo "2425"]
[BlackElo "2684"]
[WhiteTeam "GER"]
[BlackTeam "IRI"]
[WhiteClock "0:00:13"]
[BlackClock "0:00:08"]

1. e4 {[%clk 0:02:56]}  c5 {[%clk 0:02:59]} 2. Nf3 {[%clk 0:02:56]}  Nc6 {[%clk 0:03:00]} 3. Bb5 {[%clk 0:02:56]}  d5 {[%clk 0:02:59]} 4. exd5 {[%clk 0:02:54]}  Qxd5 {[%clk 0:02:59]} 5. Nc3 {[%clk 0:02:53]}  Qe6+ {[%clk 0:02:59]} 6. Qe2 {[%clk 0:02:50]}  Qxe2+ {[%clk 0:02:59]} 7. Nxe2 {[%clk 0:02:43]}  Bd7 {[%clk 0:03:00]} 8. O-O {[%clk 0:02:42]}  e6 {[%clk 0:02:59]} 9. d3 {[%clk 0:02:42]}  Nf6 {[%clk 0:02:58]} 10. Bf4 {[%clk 0:02:42]}  Be7 {[%clk 0:02:58]} 11. Rfe1 {[%clk 0:02:42]}  O-O {[%clk 0:02:58]} 12. Ng3 {[%clk 0:02:43]}  Nd5 {[%clk 0:02:58]} 13. Bd2 {[%clk 0:02:43]}  Bf6 {[%clk 0:02:58]} 14. c3 {[%clk 0:02:38]}  a6 {[%clk 0:02:59]} 15. Bxc6 {[%clk 0:02:38]}  Bxc6 {[%clk 0:03:00]} 16. Ne5 {[%clk 0:02:38]}  Rac8 {[%clk 0:02:35]} 17. Nxc6 {[%clk 0:01:58]}  Rxc6 {[%clk 0:02:36]} 18. Ne4 {[%clk 0:01:59]}  Rd8 {[%clk 0:02:34]} 19. Rad1 {[%clk 0:01:14]}  Be7 {[%clk 0:02:32]} 20. Bc1 {[%clk 0:01:11]}  Nf6 {[%clk 0:02:29]} 21. Nxf6+ {[%clk 0:00:47]}  Bxf6 {[%clk 0:02:30]} 22. Re3 {[%clk 0:00:46]}  Rcd6 {[%clk 0:02:28]} 23. Rf3 {[%clk 0:00:34]}  b5 {[%clk 0:02:24]} 24. Bf4 {[%clk 0:00:34]}  R6d7 {[%clk 0:02:21]} 25. h3 {[%clk 0:00:30]}  b4 {[%clk 0:02:21]} 26. Be3 {[%clk 0:00:16]}  bxc3 {[%clk 0:02:11]} 27. bxc3 {[%clk 0:00:16]}  Rxd3 {[%clk 0:01:50]} 28. Rxd3 {[%clk 0:00:17]}  Rxd3 {[%clk 0:01:48]} 29. Bxc5 {[%clk 0:00:17]}  Rxf3 {[%clk 0:01:32]} 30. gxf3 {[%clk 0:00:18]}  Bxc3 {[%clk 0:01:32]} 31. Kf1 {[%clk 0:00:19]}  f5 {[%clk 0:01:29]} 32. Ke2 {[%clk 0:00:19]}  Kf7 {[%clk 0:01:26]} 33. Kd3 {[%clk 0:00:20]}  Be1 {[%clk 0:01:25]} 34. Kc4 {[%clk 0:00:21]}  Kg6 {[%clk 0:01:18]} 35. Bd4 {[%clk 0:00:21]}  Kh5 {[%clk 0:01:13]} 36. Bxg7 {[%clk 0:00:20]}  Bxf2 {[%clk 0:01:13]} 37. Kb4 {[%clk 0:00:20]}  Bb6 {[%clk 0:01:01]} 38. Bf6 {[%clk 0:00:18]}  Kg6 {[%clk 0:00:51]} 39. Be5 {[%clk 0:00:18]}  Kg5 {[%clk 0:00:45]} 40. Bg3 {[%clk 0:00:19]}  f4 {[%clk 0:00:37]} 41. Be1 {[%clk 0:00:19]}  e5 {[%clk 0:00:30]} 42. Kc4 {[%clk 0:00:19]}  e4 {[%clk 0:00:20]} 43. fxe4 {[%clk 0:00:20]}  f3 {[%clk 0:00:20]} 44. Bd2+ {[%clk 0:00:16]}  Kh4 {[%clk 0:00:20]} 45. Kd3 {[%clk 0:00:17]}  f2 {[%clk 0:00:19]} 46. Ke2 {[%clk 0:00:17]}  Kxh3 {[%clk 0:00:19]} 47. Kf1 {[%clk 0:00:18]}  Kg4 {[%clk 0:00:18]} 48. Bh6 {[%clk 0:00:08]}  Bd4 {[%clk 0:00:15]} 49. a4 {[%clk 0:00:07]}  a5 {[%clk 0:00:15]} 50. Kg2 {[%clk 0:00:07]}  Bc5 {[%clk 0:00:12]} 51. Kf1 {[%clk 0:00:07]}  Kh5 {[%clk 0:00:13]} 52. Bf4 {[%clk 0:00:06]}  Kg6 {[%clk 0:00:11]} 53. Kg2 {[%clk 0:00:05]}  h5 {[%clk 0:00:11]} 54. Bg3 {[%clk 0:00:06]}  Kf6 {[%clk 0:00:08]} 55. Kf1 {[%clk 0:00:01]}  Ke6 {[%clk 0:00:07]} 56. Bh2 {[%clk 0:00:02]}  h4 {[%clk 0:00:06]} 57. Bf4 {[%clk 0:00:02]}  h3 {[%clk 0:00:07]} 58. Bg3 {[%clk 0:00:03]}  Kf6 {[%clk 0:00:05]} 59. Bxf2 {[%clk 0:00:03]}  Bxf2 {[%clk 0:00:05]} 60. Kxf2 {[%clk 0:00:04]}  Ke5 {[%clk 0:00:04]} 61. Kg3 {[%clk 0:00:05]}  Kxe4 {[%clk 0:00:04]} 62. Kxh3 {[%clk 0:00:06]}  Kd4 {[%clk 0:00:05]} 63. Kg3 {[%clk 0:00:07]}  Kc4 {[%clk 0:00:06]} 64. Kf3 {[%clk 0:00:08]}  Kb4 {[%clk 0:00:07]} 65. Ke3 {[%clk 0:00:08]}  Kxa4 {[%clk 0:00:08]} 66. Kd2 {[%clk 0:00:09]}  Ka3 {[%clk 0:00:08]} 67. Kc1 {[%clk 0:00:10]}  Ka2 {[%clk 0:00:08]} 68. Kc2 {[%clk 0:00:11]}  a4 {[%clk 0:00:08]} 69. Kc1 {[%clk 0:00:12]}  a3 {[%clk 0:00:08]} 70. Kc2 {[%clk 0:00:12]}  Ka1 {[%clk 0:00:08]} 71. Kc1 {[%clk 0:00:12]}  a2 {[%clk 0:00:08]} 72. Kc2 {[%clk 0:00:13]} 1/2-1/2

[Event "January 2 Late 2024"]
[Site "https://www.chess.com"]
[Date "2024.01.02"]
[Round "6"]
[White "Haydon, David L"]
[Black "Spichkin, Alexander"]
[Result "1-0"]
[Board "123"]
[TimeControl "180+1"]
[WhiteFideId "415405"]
[BlackFideId "4144074"]
[WhiteElo "2648"]
[BlackElo "2423"]
[WhiteTeam "ENG"]
[BlackTeam "RUS"]
[WhiteClock "0:01:30"]
[BlackClock "0:01:42"]

1. e4 {[%clk 0:03:00]}  e5 {[%clk 0:02:59]} 2. Nf3 {[%clk 0:03:00]}  d5 {[%clk 0:02:58]} 3. Nxe5 {[%clk 0:02:54]}  Bd6 {[%clk 0:02:57]} 4. d4 {[%clk 0:02:52]}  dxe4 {[%clk 0:02:58]} 5. Nc4 {[%clk 0:02:51]}  Nf6 {[%clk 0:02:56]} 6. Nxd6+ {[%clk 0:02:50]}  Qxd6 {[%clk 0:02:55]} 7. Nc3 {[%clk 0:02:51]}  Nc6 {[%clk 0:02:55]} 8. Nb5 {[%clk 0:02:47]}  Qe7 {[%clk 0:02:50]} 9. d5 {[%clk 0:02:45]}  Nb4 {[%clk 0:02:49]} 10. d6 {[%clk 0:02:31]}  cxd6 {[%clk 0:02:47]} 11. Bf4 {[%clk 0:02:24]}  O-O {[%clk 0:02:34]} 12. Bxd6 {[%clk 0:02:22]}  Qe6 {[%clk 0:02:28]} 13. Bxb4 {[%clk 0:02:19]}  Re8 {[%clk 0:02:28]} 14. Nc7 {[%clk 0:02:15]}  Qb6 {[%clk 0:02:26]} 15. Nxe8 {[%clk 0:02:15]}  Qxb4+ {[%clk 0:02:26]} 16. c3 {[%clk 0:02:16]}  Qxb2 {[%clk 0:02:26]} 17. Nxf6+ {[%clk 0:02:15]}  gxf6 {[%clk 0:02:25]} 18. Qc1 {[%clk 0:02:13]}  Qb6 {[%clk 0:02:23]} 19. Be2 {[%clk 0:02:12]}  Bf5 {[%clk 0:02:13]} 20. O-O {[%clk 0:02:11]}  Rc8 {[%clk 0:02:08]} 21. Qe3 {[%clk 0:02:08]}  Qc6 {[%clk 0:02:04]} 22. c4 {[%clk 0:02:06]}  Bg6 {[%clk 0:02:03]} 23. Qxa7 {[%clk 0:01:53]}  f5 {[%clk 0:02:04]} 24. Qe3 {[%clk 0:01:52]}  Qc7 {[%clk 0:02:03]} 25. g3 {[%clk 0:01:52]}  h5 {[%clk 0:02:01]} 26. h4 {[%clk 0:01:50]}  Qe5 {[%clk 0:01:59]} 27. Rad1 {[%clk 0:01:48]}  Ra8 {[%clk 0:01:59]} 28. Rd5 {[%clk 0:01:48]}  Qf6 {[%clk 0:01:58]} 29. a3 {[%clk 0:01:46]}  Qe7 {[%clk 0:01:57]} 30. Rfd1 {[%clk 0:01:42]}  Rxa3 {[%clk 0:01:57]} 31. Qd4 {[%clk 0:01:33]}  Ra8 {[%clk 0:01:47]} 32. Rd8+ {[%clk 0:01:31]}  Rxd8 {[%clk 0:01:43]} 33. Qxd8+ {[%clk 0:01:30]}  Qxd8 {[%clk 0:01:44]} 34. Rxd8+ {[%clk 0:01:29]}  Kg7 {[%clk 0:01:42]} 35. Rb8 {[%clk 0:01:30]} 1-0

[Event "January 2 Late 2024"]
[Site "https://www.chess.com"]
[Date "2024.01.02"]
[Round "6"]
[White "Karpov, Vadim"]
[Black "Hajiyev, Kanan"]
[Result "1/2-1/2"]
[Board "124"]
[TimeControl "180+1"]
[WhiteFideId "4155025"]
[BlackFideId "13404148"]
[WhiteElo "2422"]
[BlackElo "2613"]
[WhiteTeam "RUS"]
[BlackTeam "AZE"]
[WhiteClock "0:00:08"]
[BlackClock "0:00:09"]

1. Nf3 {[%clk 0:03:00]}  d5 {[%clk 0:02:56]} 2. d4 {[%clk 0:02:59]}  c5 {[%clk 0:02:56]} 3. c4 {[%clk 0:02:54]}  cxd4 {[%clk 0:02:57]} 4. cxd5 {[%clk 0:02:53]}  Qa5+ {[%clk 0:02:56]} 5. Qd2 {[%clk 0:02:48]}  Qxd5 {[%clk 0:02:56]} 6. Nc3 {[%clk 0:02:47]}  Qd8 {[%clk 0:02:55]} 7. Qxd4 {[%clk 0:02:47]}  Qxd4 {[%clk 0:02:54]} 8. Nxd4 {[%clk 0:02:47]}  a6 {[%clk 0:02:55]} 9. g3 {[%clk 0:02:39]}  e5 {[%clk 0:02:56]} 10. Nb3 {[%clk 0:02:38]}  Nc6 {[%clk 0:02:56]} 11. Bg2 {[%clk 0:02:37]}  Bb4 {[%clk 0:02:57]} 12. Bd2 {[%clk 0:02:37]}  Be6 {[%clk 0:02:55]} 13. Ne4 {[%clk 0:02:15]}  Bxd2+ {[%clk 0:02:51]} 14. Nexd2 {[%clk 0:02:15]}  Nge7 {[%clk 0:02:20]} 15. Nc5 {[%clk 0:02:14]}  Bc8 {[%clk 0:02:17]} 16. Rc1 {[%clk 0:02:12]}  O-O {[%clk 0:02:16]} 17. a3 {[%clk 0:02:06]}  Rb8 {[%clk 0:02:05]} 18. e3 {[%clk 0:02:03]}  Rd8 {[%clk 0:01:48]} 19. Nc4 {[%clk 0:01:50]}  b6 {[%clk 0:00:56]} 20. Nb3 {[%clk 0:01:45]}  Be6 {[%clk 0:00:52]} 21. Ncd2 {[%clk 0:01:45]}  Rbc8 {[%clk 0:00:49]} 22. O-O {[%clk 0:01:45]}  a5 {[%clk 0:00:45]} 23. Rfd1 {[%clk 0:01:34]}  Bg4 {[%clk 0:00:43]} 24. Bf3 {[%clk 0:01:27]}  h5 {[%clk 0:00:39]} 25. Bxg4 {[%clk 0:01:21]}  hxg4 {[%clk 0:00:39]} 26. Ne4 {[%clk 0:01:17]}  a4 {[%clk 0:00:40]} 27. Nbd2 {[%clk 0:01:11]}  f5 {[%clk 0:00:39]} 28. Nc3 {[%clk 0:01:10]}  Na5 {[%clk 0:00:34]} 29. Ndb1 {[%clk 0:00:46]}  Nb3 {[%clk 0:00:27]} 30. Rxd8+ {[%clk 0:00:46]}  Rxd8 {[%clk 0:00:28]} 31. Rd1 {[%clk 0:00:46]}  Rxd1+ {[%clk 0:00:27]} 32. Nxd1 {[%clk 0:00:47]}  Kf7 {[%clk 0:00:20]} 33. Ndc3 {[%clk 0:00:46]}  Nc5 {[%clk 0:00:21]} 34. Kf1 {[%clk 0:00:46]}  Ke6 {[%clk 0:00:20]} 35. Ke2 {[%clk 0:00:44]}  Ng8 {[%clk 0:00:19]} 36. Nd2 {[%clk 0:00:43]}  Ne7 {[%clk 0:00:12]} 37. Nc4 {[%clk 0:00:42]}  Nc8 {[%clk 0:00:12]} 38. Nb5 {[%clk 0:00:39]}  g5 {[%clk 0:00:09]} 39. Nc3 {[%clk 0:00:34]}  e4 {[%clk 0:00:07]} 40. Kd2 {[%clk 0:00:34]}  Nb3+ {[%clk 0:00:07]} 41. Kc2 {[%clk 0:00:33]}  Nc5 {[%clk 0:00:08]} 42. Nb5 {[%clk 0:00:30]}  Kd5 {[%clk 0:00:08]} 43. Nd2 {[%clk 0:00:29]}  Nd6 {[%clk 0:00:06]} 44. Nxd6 {[%clk 0:00:28]}  Kxd6 {[%clk 0:00:07]} 45. Kc3 {[%clk 0:00:28]}  b5 {[%clk 0:00:07]} 46. Kb4 {[%clk 0:00:27]}  Kc6 {[%clk 0:00:06]} 47. Kc3 {[%clk 0:00:22]}  Nd3 {[%clk 0:00:06]} 48. b3 {[%clk 0:00:20]}  Nxf2 {[%clk 0:00:05]} 49. bxa4 {[%clk 0:00:20]}  bxa4 {[%clk 0:00:06]} 50. Nc4 {[%clk 0:00:18]}  Nd1+ {[%clk 0:00:05]} 51. Kd2 {[%clk 0:00:18]}  Nf2 {[%clk 0:00:06]} 52. Nb2 {[%clk 0:00:18]}  Nd3 {[%clk 0:00:04]} 53. Nxa4 {[%clk 0:00:15]}  Kb5 {[%clk 0:00:03]} 54. Nc3+ {[%clk 0:00:15]}  Kc4 {[%clk 0:00:04]} 55. a4 {[%clk 0:00:13]}  Nb4 {[%clk 0:00:03]} 56. a5 {[%clk 0:00:12]}  Nc6 {[%clk 0:00:04]} 57. a6 {[%clk 0:00:12]}  Kb4 {[%clk 0:00:04]} 58. Nd5+ {[%clk 0:00:11]}  Kc5 {[%clk 0:00:05]} 59. a7 {[%clk 0:00:10]}  Nxa7 {[%clk 0:00:05]} 60. Ne7 {[%clk 0:00:10]}  f4 {[%clk 0:00:06]} 61. exf4 {[%clk 0:00:10]}  gxf4 {[%clk 0:00:07]} 62. gxf4 {[%clk 0:00:10]}  Kd4 {[%clk 0:00:08]} 63. Nf5+ {[%clk 0:00:09]}  Kd5 {[%clk 0:00:08]} 64. Ke3 {[%clk 0:00:09]}  Nc6 {[%clk 0:00:08]} 65. Ng3 {[%clk 0:00:08]}  Na5 {[%clk 0:00:07]} 66. Nxe4 {[%clk 0:00:09]}  Nc4+ {[%clk 0:00:08]} 67. Kd3 {[%clk 0:00:09]}  Nb2+ {[%clk 0:00:07]} 68. Ke3 {[%clk 0:00:07]}  Nd1+ {[%clk 0:00:08]} 69. Ke2 {[%clk 0:00:05]}  Kxe4 {[%clk 0:00:06]} 70. Kxd1 {[%clk 0:00:06]}  Kxf4 {[%clk 0:00:07]} 71. Ke2 {[%clk 0:00:06]}  Ke4 {[%clk 0:00:07]} 72. Kf2 {[%clk 0:00:06]}  Kf4 {[%clk 0:00:08]} 73. Kg2 {[%clk 0:00:06]}  Kg5 {[%clk 0:00:08]} 74. Kg3 {[%clk 0:00:06]}  Kh5 {[%clk 0:00:08]} 75. h3 {[%clk 0:00:07]}  gxh3 {[%clk 0:00:09]} 76. Kxh3 {[%clk 0:00:08]} 1/2-1/2

[Event "January 2 Late 2024"]
[Site "https://www.chess.com"]
[Date "2024.01.02"]
[Round "6"]
[White "Caglar, Sila"]
[Black "osh1ro"]
[Result "0-1"]
[Board "125"]
[TimeControl "180+1"]
[WhiteFideId "6364063"]
[WhiteElo "2419"]
[BlackElo "2602"]
[WhiteTeam "TUR"]
[WhiteClock "0:00:05"]
[BlackClock "0:00:12"]

1. e4 {[%clk 0:03:00]}  e6 {[%clk 0:02:58]} 2. d4 {[%clk 0:03:00]}  d5 {[%clk 0:02:54]} 3. Bd3 {[%clk 0:03:01]}  Nd7 {[%clk 0:02:52]} 4. e5 {[%clk 0:02:55]}  c5 {[%clk 0:02:52]} 5. c3 {[%clk 0:02:55]}  b6 {[%clk 0:02:47]} 6. Ne2 {[%clk 0:02:53]}  a5 {[%clk 0:02:43]} 7. O-O {[%clk 0:02:52]}  Ba6 {[%clk 0:02:42]} 8. Bc2 {[%clk 0:02:52]}  Ne7 {[%clk 0:02:38]} 9. Nd2 {[%clk 0:02:51]}  Nf5 {[%clk 0:02:38]} 10. Nf3 {[%clk 0:02:51]}  Be7 {[%clk 0:02:36]} 11. Re1 {[%clk 0:02:51]}  Nh4 {[%clk 0:02:34]} 12. Ng3 {[%clk 0:02:47]}  g6 {[%clk 0:02:27]} 13. Bh6 {[%clk 0:02:39]}  Bf8 {[%clk 0:02:16]} 14. Be3 {[%clk 0:02:30]}  Rc8 {[%clk 0:02:13]} 15. Rc1 {[%clk 0:02:29]}  Bg7 {[%clk 0:02:11]} 16. Ng5 {[%clk 0:01:43]}  h6 {[%clk 0:02:01]} 17. Nh3 {[%clk 0:01:39]}  O-O {[%clk 0:01:53]} 18. Qd2 {[%clk 0:01:28]}  cxd4 {[%clk 0:01:09]} 19. cxd4 {[%clk 0:01:22]}  Kh7 {[%clk 0:00:59]} 20. Bb1 {[%clk 0:01:21]}  Nf5 {[%clk 0:00:55]} 21. Nxf5 {[%clk 0:01:19]}  exf5 {[%clk 0:00:55]} 22. Nf4 {[%clk 0:01:19]}  Nb8 {[%clk 0:00:48]} 23. g3 {[%clk 0:01:03]}  Qd7 {[%clk 0:00:44]} 24. h4 {[%clk 0:01:00]}  h5 {[%clk 0:00:42]} 25. Rxc8 {[%clk 0:00:35]}  Rxc8 {[%clk 0:00:41]} 26. Qd1 {[%clk 0:00:35]}  Kg8 {[%clk 0:00:18]} 27. e6 {[%clk 0:00:31]}  Qb7 {[%clk 0:00:14]} 28. exf7+ {[%clk 0:00:24]}  Qxf7 {[%clk 0:00:15]} 29. Nh3 {[%clk 0:00:24]}  Qb7 {[%clk 0:00:14]} 30. Nf4 {[%clk 0:00:18]}  Qf7 {[%clk 0:00:14]} 31. Nh3 {[%clk 0:00:18]}  Nc6 {[%clk 0:00:14]} 32. Ng5 {[%clk 0:00:19]}  Qd7 {[%clk 0:00:14]} 33. a3 {[%clk 0:00:15]}  b5 {[%clk 0:00:14]} 34. Qf3 {[%clk 0:00:15]}  b4 {[%clk 0:00:14]} 35. a4 {[%clk 0:00:14]}  Re8 {[%clk 0:00:13]} 36. Ba2 {[%clk 0:00:13]}  Bc4 {[%clk 0:00:14]} 37. Bxc4 {[%clk 0:00:13]}  dxc4 {[%clk 0:00:14]} 38. d5 {[%clk 0:00:12]}  Ne5 {[%clk 0:00:14]} 39. Qg2 {[%clk 0:00:12]}  Nd3 {[%clk 0:00:15]} 40. Rd1 {[%clk 0:00:09]}  Nxb2 {[%clk 0:00:15]} 41. Rc1 {[%clk 0:00:09]}  c3 {[%clk 0:00:15]} 42. Bb6 {[%clk 0:00:08]}  Nd3 {[%clk 0:00:13]} 43. Rd1 {[%clk 0:00:07]}  c2 {[%clk 0:00:12]} 44. Rxd3 {[%clk 0:00:06]}  c1=Q+ {[%clk 0:00:12]} 45. Kh2 {[%clk 0:00:07]}  Qc4 {[%clk 0:00:12]} 46. Re3 {[%clk 0:00:05]}  Rxe3 {[%clk 0:00:12]} 47. Bxe3 {[%clk 0:00:05]}  Qdxd5 {[%clk 0:00:12]} 48. Qf1 {[%clk 0:00:05]}  Qxf1 {[%clk 0:00:12]} 0-1

[Event "January 2 Late 2024"]
[Site "https://www.chess.com"]
[Date "2024.01.02"]
[Round "6"]
[White "Zavgorodniy, Sergiy"]
[Black "Alvarado, Carlos"]
[Result "1/2-1/2"]
[Board "126"]
[TimeControl "180+1"]
[WhiteFideId "14110148"]
[BlackFideId "3800555"]
[WhiteElo "2596"]
[BlackElo "2419"]
[WhiteTeam "UKR"]
[BlackTeam "PER"]
[WhiteClock "0:00:46"]
[BlackClock "0:00:41"]

1. d4 {[%clk 0:02:39]}  d5 {[%clk 0:02:59]} 2. c4 {[%clk 0:02:39]}  e6 {[%clk 0:02:58]} 3. Nf3 {[%clk 0:02:37]}  Nf6 {[%clk 0:02:57]} 4. e3 {[%clk 0:02:37]}  Bb4+ {[%clk 0:02:55]} 5. Nbd2 {[%clk 0:02:37]}  O-O {[%clk 0:02:54]} 6. Bd3 {[%clk 0:02:38]}  dxc4 {[%clk 0:02:53]} 7. Bxc4 {[%clk 0:02:38]}  c5 {[%clk 0:02:52]} 8. dxc5 {[%clk 0:02:39]}  Bxc5 {[%clk 0:02:46]} 9. a3 {[%clk 0:02:39]}  b6 {[%clk 0:02:43]} 10. b4 {[%clk 0:02:39]}  Be7 {[%clk 0:02:43]} 11. Bb2 {[%clk 0:02:40]}  Bb7 {[%clk 0:02:43]} 12. O-O {[%clk 0:02:40]}  Nc6 {[%clk 0:02:43]} 13. Qe2 {[%clk 0:02:24]}  Rc8 {[%clk 0:02:40]} 14. Rfd1 {[%clk 0:02:24]}  Qc7 {[%clk 0:02:40]} 15. Rac1 {[%clk 0:02:24]}  Qb8 {[%clk 0:02:40]} 16. Ba6 {[%clk 0:02:24]}  Nd5 {[%clk 0:02:32]} 17. Bxb7 {[%clk 0:02:18]}  Qxb7 {[%clk 0:02:31]} 18. Nc4 {[%clk 0:02:18]}  Rfd8 {[%clk 0:02:28]} 19. h3 {[%clk 0:02:16]}  b5 {[%clk 0:02:23]} 20. Nce5 {[%clk 0:02:14]}  Nxe5 {[%clk 0:02:23]} 21. Bxe5 {[%clk 0:02:15]}  Bf6 {[%clk 0:02:17]} 22. Bxf6 {[%clk 0:02:14]}  gxf6 {[%clk 0:02:16]} 23. Qb2 {[%clk 0:02:10]}  Kg7 {[%clk 0:02:08]} 24. Qd4 {[%clk 0:02:05]}  Rxc1 {[%clk 0:02:03]} 25. Rxc1 {[%clk 0:02:03]}  Rc8 {[%clk 0:02:03]} 26. Rxc8 {[%clk 0:02:00]}  Qxc8 {[%clk 0:02:04]} 27. Qxa7 {[%clk 0:02:00]}  Qc1+ {[%clk 0:02:03]} 28. Kh2 {[%clk 0:02:00]}  Qb2 {[%clk 0:02:00]} 29. Kg3 {[%clk 0:01:48]}  Nc3 {[%clk 0:01:57]} 30. Qb7 {[%clk 0:01:21]}  Nd1 {[%clk 0:01:51]} 31. Kh2 {[%clk 0:01:07]}  Qxf2 {[%clk 0:01:49]} 32. Nd4 {[%clk 0:00:57]}  Qxe3 {[%clk 0:01:13]} 33. Nxb5 {[%clk 0:00:50]}  Qe5+ {[%clk 0:00:54]} 34. Kg1 {[%clk 0:00:46]}  Qe1+ {[%clk 0:00:41]} 35. Kh2 {[%clk 0:00:46]}  Qe5+ {[%clk 0:00:41]} 36. Kg1 {[%clk 0:00:46]}  Qe1+ {[%clk 0:00:41]} 37. Kh2 {[%clk 0:00:46]}  Qe5+ {[%clk 0:00:41]} 1/2-1/2

[Event "January 2 Late 2024"]
[Site "https://www.chess.com"]
[Date "2024.01.02"]
[Round "6"]
[White "AmanteDeMoi"]
[Black "Garrido, Denis"]
[Result "1-0"]
[Board "131"]
[TimeControl "180+1"]
[BlackFideId "601217"]
[WhiteElo "2565"]
[BlackElo "2409"]
[BlackTeam "FRA"]
[WhiteClock "0:00:04"]
[BlackClock "0:00:08"]

1. Nf3 {[%clk 0:03:00]}  d5 {[%clk 0:02:57]} 2. e3 {[%clk 0:03:00]}  c6 {[%clk 0:02:55]} 3. c4 {[%clk 0:03:01]}  e6 {[%clk 0:02:56]} 4. b3 {[%clk 0:03:00]}  Qf6 {[%clk 0:02:47]} 5. Nc3 {[%clk 0:02:53]}  Bd6 {[%clk 0:02:41]} 6. Bb2 {[%clk 0:02:53]}  Qh6 {[%clk 0:02:41]} 7. Rc1 {[%clk 0:02:50]}  Nd7 {[%clk 0:02:39]} 8. g4 {[%clk 0:02:39]}  Ne7 {[%clk 0:02:19]} 9. Ne2 {[%clk 0:02:23]}  f6 {[%clk 0:02:08]} 10. h4 {[%clk 0:02:21]}  Ne5 {[%clk 0:02:07]} 11. Bxe5 {[%clk 0:02:15]}  fxe5 {[%clk 0:02:05]} 12. g5 {[%clk 0:02:09]}  Qg6 {[%clk 0:02:04]} 13. h5 {[%clk 0:02:08]}  Qf7 {[%clk 0:01:55]} 14. Ng3 {[%clk 0:01:38]}  e4 {[%clk 0:01:51]} 15. Nh4 {[%clk 0:01:29]}  O-O {[%clk 0:01:47]} 16. Qe2 {[%clk 0:01:25]}  Bxg3 {[%clk 0:01:34]} 17. fxg3 {[%clk 0:01:24]}  Nf5 {[%clk 0:01:18]} 18. g6 {[%clk 0:01:21]}  Qc7 {[%clk 0:01:18]} 19. gxh7+ {[%clk 0:01:18]}  Kxh7 {[%clk 0:01:18]} 20. Nxf5 {[%clk 0:01:14]}  exf5 {[%clk 0:00:58]} 21. cxd5 {[%clk 0:01:14]}  Qxg3+ {[%clk 0:00:57]} 22. Qf2 {[%clk 0:01:15]}  Qxf2+ {[%clk 0:00:57]} 23. Kxf2 {[%clk 0:01:16]}  cxd5 {[%clk 0:00:58]} 24. Rc7 {[%clk 0:01:17]}  Be6 {[%clk 0:00:41]} 25. Rxb7 {[%clk 0:01:01]}  Rfb8 {[%clk 0:00:39]} 26. Re7 {[%clk 0:00:58]}  Re8 {[%clk 0:00:39]} 27. Rb7 {[%clk 0:00:48]}  Reb8 {[%clk 0:00:39]} 28. Re7 {[%clk 0:00:46]}  Re8 {[%clk 0:00:39]} 29. Rxe8 {[%clk 0:00:43]}  Rxe8 {[%clk 0:00:38]} 30. Be2 {[%clk 0:00:22]}  Rc8 {[%clk 0:00:36]} 31. Bd1 {[%clk 0:00:22]}  Rc1 {[%clk 0:00:33]} 32. Rg1 {[%clk 0:00:16]}  Bf7 {[%clk 0:00:29]} 33. a4 {[%clk 0:00:12]}  Rb1 {[%clk 0:00:25]} 34. Rh1 {[%clk 0:00:04]}  Kh6 {[%clk 0:00:24]} 35. Kg3 {[%clk 0:00:04]}  Rxd1 {[%clk 0:00:20]} 36. Rxd1 {[%clk 0:00:03]}  Bxh5 {[%clk 0:00:19]} 37. Rc1 {[%clk 0:00:04]}  g5 {[%clk 0:00:19]} 38. b4 {[%clk 0:00:04]}  Be2 {[%clk 0:00:17]} 39. b5 {[%clk 0:00:04]}  Bc4 {[%clk 0:00:08]} 40. Rb1 {[%clk 0:00:04]} 1-0

[Event "January 2 Late 2024"]
[Site "https://www.chess.com"]
[Date "2024.01.02"]
[Round "6"]
[White "Skibbe, Willi"]
[Black "Lin, Bryan Enming"]
[Result "0-1"]
[Board "135"]
[TimeControl "180+1"]
[WhiteFideId "4682190"]
[BlackFideId "30987121"]
[WhiteElo "2401"]
[BlackElo "2545"]
[WhiteTeam "GER"]
[BlackTeam "USA"]
[WhiteClock "0:00:01"]
[BlackClock "0:00:41"]

1. c4 {[%clk 0:03:00]}  Nf6 {[%clk 0:02:57]} 2. Nf3 {[%clk 0:02:57]}  g6 {[%clk 0:02:57]} 3. Nc3 {[%clk 0:02:50]}  Bg7 {[%clk 0:02:57]} 4. e4 {[%clk 0:02:50]}  d6 {[%clk 0:02:56]} 5. d4 {[%clk 0:02:51]}  O-O {[%clk 0:02:56]} 6. Be2 {[%clk 0:02:51]}  e5 {[%clk 0:02:56]} 7. Be3 {[%clk 0:02:50]}  Ng4 {[%clk 0:02:56]} 8. Bg5 {[%clk 0:02:50]}  f6 {[%clk 0:02:56]} 9. Bc1 {[%clk 0:02:50]}  Nc6 {[%clk 0:02:55]} 10. d5 {[%clk 0:02:49]}  Ne7 {[%clk 0:02:56]} 11. h3 {[%clk 0:02:45]}  Nh6 {[%clk 0:02:56]} 12. Be3 {[%clk 0:02:43]}  f5 {[%clk 0:02:47]} 13. Bg5 {[%clk 0:02:42]}  Nf7 {[%clk 0:02:44]} 14. exf5 {[%clk 0:02:42]}  gxf5 {[%clk 0:02:42]} 15. Bh4 {[%clk 0:02:31]}  e4 {[%clk 0:02:39]} 16. Nd4 {[%clk 0:02:26]}  Ne5 {[%clk 0:02:20]} 17. O-O {[%clk 0:02:21]}  N5g6 {[%clk 0:02:19]} 18. Bg5 {[%clk 0:02:15]}  h6 {[%clk 0:02:18]} 19. Bc1 {[%clk 0:02:03]}  c5 {[%clk 0:02:06]} 20. dxc6 {[%clk 0:02:00]}  bxc6 {[%clk 0:02:07]} 21. g3 {[%clk 0:01:46]}  d5 {[%clk 0:01:56]} 22. cxd5 {[%clk 0:01:44]}  cxd5 {[%clk 0:01:56]} 23. h4 {[%clk 0:01:37]}  Qb6 {[%clk 0:01:44]} 24. h5 {[%clk 0:01:30]}  Qxd4 {[%clk 0:01:40]} 25. hxg6 {[%clk 0:01:28]}  Qxd1 {[%clk 0:01:39]} 26. Rxd1 {[%clk 0:01:28]}  d4 {[%clk 0:01:39]} 27. Bc4+ {[%clk 0:01:24]}  Kh8 {[%clk 0:01:38]} 28. Nd5 {[%clk 0:01:23]}  Nxg6 {[%clk 0:01:37]} 29. b3 {[%clk 0:01:14]}  d3 {[%clk 0:01:35]} 30. Rb1 {[%clk 0:00:56]}  Ne5 {[%clk 0:01:31]} 31. Ba3 {[%clk 0:00:53]}  Rf7 {[%clk 0:01:18]} 32. Nf4 {[%clk 0:00:49]}  Nxc4 {[%clk 0:01:17]} 33. bxc4 {[%clk 0:00:45]}  Ba6 {[%clk 0:01:17]} 34. c5 {[%clk 0:00:41]}  Rc8 {[%clk 0:01:17]} 35. Ne6 {[%clk 0:00:31]}  Be5 {[%clk 0:01:08]} 36. Bb2 {[%clk 0:00:26]}  Bxb2 {[%clk 0:01:00]} 37. Rxb2 {[%clk 0:00:27]}  Bc4 {[%clk 0:01:01]} 38. Nf4 {[%clk 0:00:15]}  Rxc5 {[%clk 0:01:00]} 39. Rc1 {[%clk 0:00:13]}  Rfc7 {[%clk 0:00:58]} 40. Rb8+ {[%clk 0:00:10]}  Bg8 {[%clk 0:00:51]} 41. Rxc5 {[%clk 0:00:08]}  Rxc5 {[%clk 0:00:51]} 42. Ng6+ {[%clk 0:00:07]}  Kg7 {[%clk 0:00:50]} 43. Ne7 {[%clk 0:00:07]}  d2 {[%clk 0:00:49]} 44. Rxg8+ {[%clk 0:00:06]}  Kf7 {[%clk 0:00:49]} 45. Rd8 {[%clk 0:00:07]}  Rc1+ {[%clk 0:00:49]} 46. Kg2 {[%clk 0:00:08]}  d1=Q {[%clk 0:00:49]} 47. Rxd1 {[%clk 0:00:09]}  Rxd1 {[%clk 0:00:50]} 48. Nxf5 {[%clk 0:00:09]}  Kg6 {[%clk 0:00:42]} 49. Ne7+ {[%clk 0:00:07]}  Kf6 {[%clk 0:00:42]} 50. Nc6 {[%clk 0:00:07]}  Rd2 {[%clk 0:00:41]} 51. Nxa7 {[%clk 0:00:06]}  e3 {[%clk 0:00:41]} 52. Kf3 {[%clk 0:00:01]}  e2 {[%clk 0:00:41]} 0-1